[Event "37th ECCC 2022"]
[Site "Mayrhofen"]
[Date "2022.10.04"]
[Round "2.54"]
[White "Tuomainen, Felix"]
[Black "Babazada, Khazar"]
[Result "0-1"]
[ECO "A85"]
[WhiteElo "2222"]
[BlackElo "2463"]
[Annotator "TA"]
[PlyCount "86"]
[EventDate "2022.10.03"]
[EventType "team-tourn"]
[EventCountry "AUT"]
[SourceTitle "playchess.com"]
[Source "ChessBase"]
[SourceQuality "1"]
[TimeControl "40/5400+30:1800+30"]

{[%evp 9,86,-22,8,0,7,-3,6,-20,-22,-26,-11,-12,-10,-17,-13,-24,-20,-20,-13,-61,-7,-52,-63,-77,-56,-65,-58,-67,-64,-74,-60,-64,-62,-86,-74,-73,-57,-128,-116,-219,-216,-229,-240,-236,-228,-225,-188,-187,-192,-186,-181,-171,-172,-167,-175,-211,-210,-198,-189,-201,-190,-185,-173,-208,-203,-241,-261,-235,-204,-266,-260,-356,-331,-368,-368,-368,-360,-341,-332]} 1. d4 {[%emt 0:00:02]} f5 {[%emt 0:00:13]} 2. c4 {[%emt 0:00:36]} Nf6 {[%emt 0:00:08]} 3. Nc3 {[%emt 0:01:40]} d6 {[%emt 0:00:55]} 4. Bg5 {[%emt 0:02:11]} Nbd7 {[%emt 0:00:13]} 5. d5 {[%emt 0:03:02] [#]} e5 $146 {[%emt 0:06:10]} ({Predecessor:} 5... g6 6. g3 Bg7 7. Bg2 Nc5 8. Nf3 Nfe4 9. Nxe4 Nxe4 10. Qc1 c6 11. O-O cxd5 12. cxd5 Qb6 {0-1 (74) Kamsky,G (2732)-Wang,H (2736) Beijing 2011}) 6. dxe6 {[%emt 0:03:16] A85: Dutch Defence: 2 c4 Nf6 3 Nc3.} Nc5 {[%emt 0:00:23]} 7. Nf3 {[%emt 0:11:01]} Nxe6 {[%emt 0:00:57]} 8. Bxf6 {[%emt 0:01:40] The position is equal.} (8. e3 {looks sharper.} g6 9. h4 Bg7 10. Qc2) 8... Qxf6 {[%emt 0:00:07]} 9. g3 {[%emt 0:01:47]} g5 {[%emt 0:08:23]} 10. Bg2 {[%emt 0:04:27]} Bg7 {[%emt 0:00:09]} 11. O-O {[%emt 0:01:04]} O-O {[%emt 0:00:20]} (11... f4 {feels hotter.} 12. Nd5 Qf7 13. Bh3 h6) 12. Qd2 {[%emt 0:06:24]} g4 {[%emt 0:02:59]} 13. Ne1 {[%emt 0:03:39]} f4 {[%emt 0:01:23]} 14. Rb1 {[%emt 0:02:22]} (14. Nd5 $11 {is superior.} Qxb2 15. Qxb2 Bxb2 16. Rb1) 14... Qh6 {[%emt 0:06:08]} (14... Qf7 $15) 15. Nd5 {[%emt 0:05:18]} fxg3 {[%emt 0:02:41][%csl Gg3][%cal Rh6h2]} 16. Qxh6 {[%emt 0:00:47]} gxf2+ $1 {[%emt 0:00:10]} 17. Rxf2 {[%emt 0:00:17]} Bxh6 {[%emt 0:00:11]} 18. Nf6+ {[%emt 0:11:17]} Kh8 {[%emt 0:00:08] And now ...Nf4 would win.} 19. Nxg4 {[%emt 0:00:47]} Rxf2 {[%emt 0:00:05]} 20. Kxf2 {[%emt 0:00:31]} Bg7 {[%emt 0:00:04][%cal Bh6g7,Bg7d4,Bd4b6,Bb6e3][%mdl 32]} 21. Bf3 {[%emt 0:02:43]} Ng5 {[%emt 0:01:43]} 22. b3 {[%emt 0:14:00]} Bd4+ {[%emt 0:07:23]} 23. e3 {[%emt 0:06:48] Black continues to play with concentration.} ({White should play} 23. Kg2 $15) 23... Bb6 {[%emt 0:00:38] White must now prevent ...Bxg4.} 24. Ke2 {[%emt 0:05:35] [#]} (24. h4 $17 Bf5 25. Rb2 Nxf3 26. Kxf3) 24... Bf5 $1 $19 {[%emt 0:00:32]} 25. Rd1 {[%emt 0:01:10]} Nxf3 {[%emt 0:00:45]} 26. Kxf3 {[%emt 0:00:06]} Rf8 {[%emt 0:00:09] Threatens to win with ...Bc2+.} 27. Kg3 {[%emt 0:03:41]} Be6 {[%emt 0:01:54] aiming for ...Rg8.} ({Don't go for} 27... Rg8 $2 28. h3) 28. Nf2 {[%emt 0:02:25]} Bxe3 {[%emt 0:00:30]} 29. Ned3 {[%emt 0:00:13]} Bf5 {[%emt 0:01:26]} 30. Re1 {[%emt 0:00:50]} Bg5 {[%emt 0:00:40]} 31. Ne4 {[%emt 0:01:28]} Bh6 {[%emt 0:00:59]} 32. Ndf2 {[%emt 0:00:46]} Bg7 {[%emt 0:00:54]} 33. h3 {[%emt 0:01:14]} Be5+ {[%emt 0:00:05] This bishop pair is nice.} 34. Kg2 {[%emt 0:00:07]} Rg8+ {[%emt 0:00:17]} 35. Kf3 {[%emt 0:00:21]} Bg6 {[%emt 0:00:34]} 36. Ng4 {[%emt 0:00:30]} Bd4 {[%emt 0:00:29]} 37. Ng5 {[%emt 0:01:46] [#]} h5 $1 {[%emt 0:02:47]} 38. Ne3 {[%emt 0:01:58]} Rf8+ {[%emt 0:00:07]} 39. Kg3 {[%emt 0:00:49]} Re8 {[%emt 0:00:43]} 40. Ng2 {[%emt 0:00:46]} Rxe1 {[%emt 0:00:19]} 41. Nxe1 {[%emt 0:30:04]} Bb1 {[%emt 0:30:14]} 42. a3 {[%emt 0:01:19]} Ba2 {[%emt 0:00:08]} 43. Ngf3 {[%emt 0:00:22]} Bc3 {[%emt 0:00:07] Weighted Error Value: White=0.19 (very precise) /Black=0.07 (flawless)} 0-1

[Event "37th ECCC 2022"]
[Site "Mayrhofen"]
[Date "2022.10.04"]
[Round "2.55"]
[White "Thorgeirsson, Jon Kristinn"]
[Black "Elsness, Frode"]
[Result "0-1"]
[ECO "D37"]
[WhiteElo "2237"]
[BlackElo "2468"]
[Annotator "TA"]
[PlyCount "114"]
[EventDate "2022.10.03"]
[EventType "team-tourn"]
[EventCountry "AUT"]
[SourceTitle "playchess.com"]
[Source "ChessBase"]
[SourceQuality "1"]
[TimeControl "40/5400+30:1800+30"]

{[%evp 9,114,27,26,26,29,29,29,22,31,26,31,24,29,29,30,32,39,35,42,22,22,28,35,36,33,6,25,0,0,0,10,11,11,7,29,22,27,14,24,23,35,16,34,12,8,0,0,-25,-30,-32,-23,-30,128,46,51,-76,-81,-81,-67,-69,40,0,0,-16,-17,-39,-33,-45,0,0,0,0,0,-20,-18,-299,-227,-427,-246,-625,-608,-608,-309,-310,-310,-310,-319,-315,-313,-576,-531,-571,-554,-547,-539,-1311,-1137,-1803,-1795,-911,-768,-6099,-6099,-6093,-6059,-5635,-4133]} 1. d4 {[%emt 0:00:02]} d5 {[%emt 0:01:06]} 2. Nf3 {[%emt 0:00:15]} Nf6 {[%emt 0:01:53]} 3. c4 {[%emt 0:00:30]} e6 {[%emt 0:00:05]} 4. Nc3 {[%emt 0:00:15]} a6 {[%emt 0:01:02]} 5. cxd5 {[%emt 0:01:14]} exd5 {[%emt 0:00:05]} 6. Bg5 {[%emt 0:00:10] D37: Queen's Gambit Declined: 5 Bf4.} Be6 {[%emt 0:02:21]} 7. e3 {[%emt 0:00:31]} Nbd7 {[%emt 0:00:58]} 8. Bd3 {[%emt 0:00:57] White has an edge.} c6 {[%emt 0:01:14]} 9. O-O {[%emt 0:00:33]} Bd6 {[%emt 0:02:30] Inhibits Ne5.} 10. Re1 {[%emt 0:09:35]} h6 {[%emt 0:07:34]} 11. Bf4 {[%emt 0:02:47]} Qc7 {[%emt 0:00:38]} 12. Qd2 {[%emt 0:02:31]} O-O {[%emt 0:01:15] [#]} 13. Rac1 $146 {[%emt 0:02:16]} ({Predecessor:} 13. h3 Rfe8 14. Rac1 Rad8 15. a3 Nb6 16. Ne5 Nfd7 17. Nxd7 Rxd7 18. Bxd6 Qxd6 19. Ne2 {0-1 (58) Gunina,V (2471)-Sarana,A (2666) Kazan 2022}) 13... Bg4 {[%emt 0:02:05]} 14. Bxd6 {[%emt 0:03:04]} Qxd6 {[%emt 0:00:03]} 15. Nh4 {[%emt 0:01:50]} Rfe8 {[%emt 0:04:10]} 16. h3 {[%emt 0:00:42]} Be6 {[%emt 0:00:44]} 17. Ne2 {[%emt 0:01:40]} Ne4 {[%emt 0:05:37]} 18. Qa5 {[%emt 0:09:22]} Qe7 {[%emt 0:14:25]} 19. Nf3 {[%emt 0:07:25][%cal Bh4f3,Bf3d2,Bd2f1][%mdl 32]} Rac8 {[%emt 0:09:16]} 20. Bxe4 {[%emt 0:07:18]} dxe4 {[%emt 0:00:05]} 21. Nd2 {[%emt 0:00:22]} Bd5 {[%emt 0:01:49]} 22. Nf4 {[%emt 0:02:30]} Nf6 {[%emt 0:01:23]} 23. Rc2 {[%emt 0:03:27]} g5 {[%emt 0:01:26]} 24. Ne2 {[%emt 0:02:12]} Kh8 {[%emt 0:12:10]} 25. Rec1 {[%emt 0:00:55]} Rg8 {[%emt 0:02:28]} 26. Nf1 {[%emt 0:02:31]} h5 {[%emt 0:03:27]} 27. b4 {[%emt 0:06:24]} h4 {[%emt 0:00:51]} 28. Nh2 {[%emt 0:00:25]} g4 {[%emt 0:04:13]} 29. hxg4 {[%emt 0:01:15]} Nxg4 {[%emt 0:01:27]} 30. Nf4 {[%emt 0:04:00]} Nxh2 $2 {[%emt 0:03:39]} (30... Nf6 $11) 31. Kxh2 {[%emt 0:00:20]} ({White should play} 31. Nxd5 $16 Qg5 32. Nf4 Qxa5 33. bxa5) 31... Rg5 $14 {[%emt 0:01:55]} 32. Qxd5 {[%emt 0:07:30]} Rxd5 $17 {[%emt 0:02:32]} ({Don't take} 32... cxd5 33. Rxc8+ Kg7 34. R1c7 $14) 33. Nxd5 {[%emt 0:00:07]} Qd6+ {[%emt 0:01:16]} 34. Nf4 {[%emt 0:00:08]} b6 {[%emt 0:02:52] Against Rc5. Black is more active.} (34... Qxb4 $15 35. Rc5 Qb2 36. Rh5+ Kg7) 35. d5 {[%emt 0:03:32][%cal Rc2c6]} c5 {[%emt 0:00:13]} 36. bxc5 {[%emt 0:00:07]} Rxc5 {[%emt 0:03:12]} 37. Rxc5 {[%emt 0:00:22]} bxc5 $11 {[%emt 0:00:02][%mdl 4096] Endgame KQ-KRN} 38. Rc4 {[%emt 0:00:16]} f5 {[%emt 0:02:23]} 39. Kh3 {[%emt 0:00:33]} Kg8 {[%emt 0:01:33]} 40. Kxh4 {[%emt 0:01:05] Threatens to win with Kg5.} Kf7 {[%emt 0:01:42]} 41. g4 {[%emt 0:37:29]} Qh6+ {[%emt 0:10:32]} 42. Kg3 $2 {[%emt 0:00:00][%mdl 8192] Loses the game.} (42. Nh5 $1 $11 {and White is okay.}) 42... Qh1 $19 {[%emt 0:00:43] [#] And now ...Qf3+ would win.} 43. Nh3 $2 {[%emt 0:00:00]} (43. gxf5 {keeps fighting.} Qf3+ 44. Kh2) 43... fxg4 {[%emt 0:05:24]} (43... Qf3+ $142 44. Kh2 Qe2 45. Rxc5 fxg4 46. Rc7+ (46. Ng5+ $2 Kf6 $19) 46... Kf6 47. Rc6+ Kf5) 44. Ng5+ $2 {[%emt 0:00:00]} (44. Kxg4 Qd1+ 45. Kg3 Qxd5 46. Rc2) 44... Kg6 {[%emt 0:00:17]} 45. Nxe4 {[%emt 0:00:00]} Qf3+ {[%emt 0:02:07]} 46. Kh2 {[%emt 0:00:00]} g3+ $1 {[%emt 0:01:19][%mdl 64] [#] Deflection, Decoy} 47. Nxg3 {[%emt 0:00:00]} Qxf2+ {[%emt 0:00:39]} 48. Kh3 {[%emt 0:00:00]} Qxe3 {[%emt 0:00:52]} 49. Rg4+ $2 {[%emt 0:00:00]} (49. d6 {was the only chance.}) 49... Kf7 {[%emt 0:00:28] Black is clearly winning.} 50. Kg2 {[%emt 0:00:00]} Qd2+ {[%emt 0:00:40]} 51. Kf3 {[%emt 0:00:00]} Qxd5+ {[%emt 0:01:26]} 52. Ne4 {[%emt 0:00:00]} c4 {[%emt 0:00:57][%cal Bc5c4,Bc4c3,Bc3c2][%mdl 32] ...c3 is the strong threat.} 53. Rg5 {[%emt 0:00:00]} Qd3+ {[%emt 0:01:25]} 54. Kf4 {[%emt 0:00:00]} c3 {[%emt 0:01:16]} 55. Rc5 {[%emt 0:00:00]} c2 {[%emt 0:01:16]} 56. Rc7+ {[%emt 0:00:00]} Kf8 {[%emt 0:05:35]} 57. Rc8+ {[%emt 0:00:00]} Ke7 {[%emt 0:00:17] Weighted Error Value: White=0.66/Black=0.22 (precise)} 0-1

[Event "37th ECCC 2022"]
[Site "Mayrhofen"]
[Date "2022.10.04"]
[Round "2.56"]
[White "Mihajlov, Sebastian"]
[Black "Sigurpalsson, Runar"]
[Result "1-0"]
[ECO "B06"]
[WhiteElo "2375"]
[BlackElo "2280"]
[Annotator "TA"]
[PlyCount "41"]
[EventDate "2022.10.03"]
[EventType "team-tourn"]
[EventCountry "AUT"]
[SourceTitle "playchess.com"]
[Source "ChessBase"]
[SourceQuality "1"]
[TimeControl "40/5400+30:1800+30"]

{[%evp 14,41,98,92,118,81,113,104,150,129,249,238,272,270,325,262,256,221,219,217,206,207,258,254,243,227,249,175,507,497]} 1. e4 {[%emt 0:02:50]} g6 {[%emt 0:00:14]} 2. d4 {[%emt 0:00:04]} Bg7 {[%emt 0:00:04]} 3. Nc3 {[%emt 0:00:04]} d6 {[%emt 0:00:08]} 4. Be3 {[%emt 0:00:03]} e5 {[%emt 0:02:53]} 5. Qd2 {[%emt 0:02:29]} Nc6 {[%emt 0:04:08]} 6. Nge2 {[%emt 0:01:05]} exd4 {[%emt 0:03:54]} 7. Nxd4 {[%emt 0:00:07]} Nge7 {[%emt 0:00:34]} 8. O-O-O {[%emt 0:03:44]} O-O {[%emt 0:02:28] C46: 3 Nc3: Unusual Black 3rd moves.} 9. Nxc6 {[%emt 0:03:00]} bxc6 {[%emt 0:06:22] [#]} 10. h4 $146 {[%emt 0:04:46][%cal Bh2h4,Bh4h5,Bh5g6][%mdl 32] White is more active.} ({Predecessor:} 10. Bh6 Bh8 11. h4 Rb8 12. h5 d5 13. hxg6 fxg6 14. Bc4 Rf7 15. Bb3 Be6 16. exd5 Bxd5 {0-1 (31) Druska,J (2495)-Vachier Lagrave,M (2784) Chess.com INT 2021}) 10... Be6 {[%emt 0:05:10]} ({Better is} 10... h5) 11. h5 $1 $16 {[%emt 0:00:54]} f5 {[%emt 0:06:25]} (11... Nc8 $16) 12. Bh6 $1 $18 {[%emt 0:03:07]} Rf7 {[%emt 0:05:02] [#]} 13. hxg6 $1 {[%emt 0:00:37]} hxg6 {[%emt 0:00:26]} 14. Bxg7 {[%emt 0:00:47]} Rxg7 {[%emt 0:00:09]} 15. exf5 {[%emt 0:00:58]} ({Don't do} 15. Qh6 $6 Kf7 16. Re1 d5 $18) 15... gxf5 {[%emt 0:02:12]} 16. Qe3 {[%emt 0:05:23]} ({But not} 16. Qh6 $6 Ng6 17. Be2 Qf6 $16) 16... Bf7 {[%emt 0:03:42]} 17. Bd3 $40 {[%emt 0:02:17][%mdl 128] White has strong attack.} Qd7 {[%emt 0:07:41]} 18. g4 {[%emt 0:06:15] aiming for gxf5.} fxg4 {[%emt 0:03:25] [#]} 19. Ne4 $1 {[%emt 0:06:00]} ({Much less strong is} 19. Qh6 $6 Kf8 $16) 19... Qe6 {[%emt 0:04:38] Against Nf6+} 20. Rh6 {[%emt 0:00:07][%mdl 1024] White has strong compensation.} Nf5 $2 {[%emt 0:02:00]} (20... Rg6 {is tougher.} 21. Rh7 Kf8) 21. Rxe6 {[%emt 0:00:07] White took control after the opening.  Weighted Error Value: White=0.15 (very precise) /Black=0.81} 1-0

[Event "37th ECCC 2022"]
[Site "Mayrhofen"]
[Date "2022.10.04"]
[Round "2.57"]
[White "Bergsson, Stefan"]
[Black "Mikalsen, Erlend"]
[Result "1-0"]
[ECO "E24"]
[WhiteElo "2153"]
[BlackElo "2354"]
[Annotator "TA"]
[PlyCount "47"]
[EventDate "2022.10.03"]
[EventType "team-tourn"]
[EventCountry "AUT"]
[SourceTitle "playchess.com"]
[Source "ChessBase"]
[SourceQuality "1"]
[TimeControl "40/5400+30:1800+30"]

{[%evp 13,47,-13,31,-14,-21,-39,0,0,8,9,13,0,76,72,64,69,54,67,72,0,89,72,233,253,459,373,510,529,758,758,736,752,745,741,684,679]} 1. d4 {[%emt 0:00:03]} Nf6 {[%emt 0:03:04]} 2. c4 {[%emt 0:00:02]} e6 {[%emt 0:00:07]} 3. Nc3 {[%emt 0:00:02]} Bb4 {[%emt 0:00:06]} 4. a3 {[%emt 0:00:02]} Bxc3+ {[%emt 0:00:07]} 5. bxc3 {[%emt 0:00:01]} Nc6 {[%emt 0:01:31]} 6. f3 {[%emt 0:00:12]} b6 {[%emt 0:00:13]} 7. e4 {[%emt 0:00:05]} Ba6 {[%emt 0:00:42] 7...Na5 might become the main line.} 8. Bd3 {[%emt 0:00:33] E24: Nimzo-Indian: Sämisch: Unusual Black 5th moves and 5...c5 sidelines.} Na5 {[%emt 0:00:56]} 9. Qe2 {[%emt 0:00:04]} d6 {[%emt 0:01:13]} 10. Nh3 {[%emt 0:00:48] The position is equal.} Qd7 {[%emt 0:02:56]} 11. Rb1 {[%emt 0:02:14]} c5 {[%emt 0:02:30]} 12. Nf2 {[%emt 0:01:24] [#]} Qa4 $146 {[%emt 0:09:09]} (12... e5 $11) ({Predecessor:} 12... e5 13. d5 Qa4 14. Bc2 Qd7 {½-½ (14) Zakharov,A-Trapl,J (2365) Decin 1977}) 13. e5 $16 {[%emt 0:07:40]} dxe5 {[%emt 0:01:30]} 14. dxe5 {[%emt 0:00:09]} Nd7 {[%emt 0:00:03][%cal Ra6c4]} 15. Ne4 $1 {[%emt 0:01:32] [#] Nd6+ is the strong threat.} Nb7 {[%emt 0:05:50]} (15... Nxc4 $2 16. Bxc4 Bxc4 17. Nd6+ Kf8 18. Nxc4 $18 (18. Qxc4 Qc2 $18)) 16. Bg5 {[%emt 0:02:44]} (16. Bf4 $16) 16... h6 {[%emt 0:02:45]} (16... Nxe5 $11 {remains equal.} 17. Nd6+ Nxd6 18. Qxe5 Kd7) 17. Bh4 {[%emt 0:03:33] Hoping for Rd1. White is more active. This bishop pair is nice.} Qc6 $2 {[%emt 0:03:23] [#] This move loses the game for Black.} (17... Qxa3 $2 18. O-O Qa4 19. Ra1 $18) (17... Nxe5 $16 18. Nd6+ Nxd6 19. Qxe5 Nf5 20. Bxf5 Qxc4) 18. f4 $1 $18 {[%emt 0:00:50]} Qc7 $2 {[%emt 0:02:29]} (18... Nf8 {was called for.} 19. Qf3 Qc8) 19. O-O {[%emt 0:01:50]} g5 {[%emt 0:01:24]} 20. fxg5 {[%emt 0:02:36][%cal Og5g6] White is clearly winning.} hxg5 {[%emt 0:00:06]} 21. Bxg5 {[%emt 0:04:15][%cal Of1f7] Black must now prevent Rxf7!} Qxe5 {[%emt 0:00:05]} 22. Nf6+ {[%emt 0:02:07]} Ke7 {[%emt 0:00:30]} 23. Qxe5 {[%emt 0:10:43]} Nxe5 {[%emt 0:00:04]} 24. Ng4+ {[%emt 0:00:15] Weighted Error Value: White=0.08 (flawless) /Black=0.68} 1-0

[Event "37th ECCC 2022"]
[Site "Mayrhofen"]
[Date "2022.10.04"]
[Round "2.58"]
[White "Elmi, Saad Abobaker"]
[Black "Thorsteinsson, Arnar"]
[Result "1/2-1/2"]
[ECO "B35"]
[WhiteElo "2263"]
[BlackElo "2215"]
[Annotator "TA"]
[PlyCount "73"]
[EventDate "2022.10.03"]
[EventType "team-tourn"]
[EventCountry "AUT"]
[SourceTitle "playchess.com"]
[Source "ChessBase"]
[SourceQuality "1"]
[TimeControl "40/5400+30:1800+30"]

{[%evp 21,73,77,102,68,93,46,111,112,103,39,44,43,44,43,43,43,47,52,55,54,68,51,56,51,63,33,52,30,17,12,39,33,39,16,10,0,0,0,0,-31,-27,-104,-8,-8,-8,-8,0,0,0,-8,0,0,0,-23]} 1. e4 {[%emt 0:03:05]} c5 {[%emt 0:00:15]} 2. Nf3 {[%emt 0:00:07]} g6 {[%emt 0:00:41]} 3. d4 {[%emt 0:01:14]} Bg7 {[%emt 0:00:11]} 4. Nc3 {[%emt 0:03:13]} cxd4 {[%emt 0:00:29]} 5. Nxd4 {[%emt 0:00:09]} Nc6 {[%emt 0:00:20]} 6. Be3 {[%emt 0:00:05]} Nf6 {[%emt 0:00:27]} 7. Bc4 {[%emt 0:00:08]} d6 {[%emt 0:00:41]} 8. f3 {[%emt 0:00:23]} O-O {[%emt 0:00:24]} 9. Bb3 {[%emt 0:00:23]} Bd7 {[%emt 0:00:28]} 10. Qd2 {[%emt 0:00:19]} Qc7 {[%emt 0:00:36]} 11. O-O-O {[%emt 0:01:24]} Rfc8 {[%emt 0:02:08]} 12. Kb1 {[%emt 0:00:30] B78: Sicilian Dragon: Yugoslav Attack, 9 Bc4 Bd7 10 0-0-0 Rc8.} Ne5 {[%emt 0:00:59]} 13. g4 {[%emt 0:00:37]} (13. Bg5 $16) 13... Nc4 {[%emt 0:02:21]} (13... b5 $1 $14) 14. Bxc4 $16 {[%emt 0:00:36] White is better.} Qxc4 {[%emt 0:00:07] [#]} 15. g5 {[%emt 0:05:03]} ({Better is} 15. Bh6 $1 $16) 15... Nh5 $14 {[%emt 0:04:18]} 16. Nd5 {[%emt 0:00:54] aiming for b3.} Re8 {[%emt 0:05:48] [#]} 17. Ne2 $146 {[%emt 0:03:51]} ({Predecessor:} 17. b3 Qc8 18. c4 Bc6 19. Rc1 Qd8 20. Nb5 e6 21. Ndc7 Bxb5 22. cxb5 Qd7 23. Nxe8 Qxe8 {1-0 (31) Corrales Ibanez,P (2077)-Martin Marfil,F (2041) Malaga 1986}) 17... Be6 {[%emt 0:06:32]} 18. Ng3 {[%emt 0:04:44]} Bxd5 {[%emt 0:02:19]} 19. Qxd5 {[%emt 0:00:22]} b5 {[%emt 0:14:27]} 20. Nxh5 {[%emt 0:05:04] Dancing on a razor blade. Active counter play!} gxh5 {[%emt 0:00:23]} 21. Qxc4 {[%emt 0:00:55]} (21. c3 {feels hotter.} Reb8 22. Rhg1 Rc8 23. Qxc4 Rxc4 24. Rd5) 21... bxc4 {[%emt 0:00:16]} 22. Bd4 {[%emt 0:00:47]} Rec8 {[%emt 0:00:59]} 23. Rhe1 {[%emt 0:01:41]} Rab8 {[%emt 0:06:53]} 24. Re3 {[%emt 0:00:54]} Rb5 {[%emt 0:02:29]} 25. h4 {[%emt 0:01:39]} Rcb8 {[%emt 0:03:30]} 26. b3 {[%emt 0:00:48]} a5 {[%emt 0:07:35]} 27. Bxg7 {[%emt 0:00:42]} Kxg7 {[%emt 0:00:26][%mdl 4096] Endgame KRR-KRR} 28. Rd4 {[%emt 0:00:36]} cxb3 {[%emt 0:01:23]} 29. axb3 {[%emt 0:00:22]} h6 {[%emt 0:01:04]} 30. f4 {[%emt 0:01:22]} hxg5 {[%emt 0:01:09]} 31. hxg5 {[%emt 0:01:41]} (31. fxg5 $11 f6 32. gxf6+ Kxf6 33. Rg3) 31... f6 {[%emt 0:00:44]} (31... Rb4 $17 32. Rd1 a4) 32. gxf6+ $11 {[%emt 0:00:33] The position is equal.} Kxf6 {[%emt 0:00:15]} 33. Kb2 {[%emt 0:00:14]} Rb4 {[%emt 0:03:22]} 34. Rd5 {[%emt 0:02:00][%csl LRa5,LRh5]} R4b5 {[%emt 0:00:44]} 35. Rd4 {[%emt 0:06:44]} Rb4 {[%emt 0:00:27]} 36. Rd5 {[%emt 0:00:51][%csl LRa5,LRh5]} R4b5 {[%emt 0:00:15] Strongly threatening ...Rxd5.} 37. Rd4 {[%emt 0:02:34] Weighted Error Value: White=0.17 (very precise) /Black=0.14 (very precise)} 1/2-1/2

[Event "37th ECCC 2022"]
[Site "Mayrhofen"]
[Date "2022.10.04"]
[Round "2.59"]
[White "Karason, Askell O"]
[Black "Stigar, Petter"]
[Result "1/2-1/2"]
[ECO "E21"]
[WhiteElo "2146"]
[BlackElo "2206"]
[Annotator "TA"]
[PlyCount "67"]
[EventDate "2022.10.03"]
[EventType "team-tourn"]
[EventCountry "AUT"]
[SourceTitle "playchess.com"]
[Source "ChessBase"]
[SourceQuality "1"]
[TimeControl "40/5400+30:1800+30"]

{[%evp 16,67,0,-7,0,-15,0,-4,-6,-12,-14,-14,-6,0,54,0,7,0,0,0,0,0,0,0,0,0,0,-6,-1,-50,-58,-49,41,-4,-9,-9,0,0,0,-27,37,31,39,8,8,9,9,11,14,0,0,-664,-406,-499]} 1. d4 {[%emt 0:00:30]} Nf6 {[%emt 0:00:29]} 2. c4 {[%emt 0:00:00]} e6 {[%emt 0:00:04]} 3. Nc3 {[%emt 0:00:00]} Bb4 {[%emt 0:00:16]} 4. Nf3 {[%emt 0:00:00]} c5 {[%emt 0:00:23]} 5. g3 {[%emt 0:00:00]} Nc6 {[%emt 0:00:23]} 6. Bg2 {[%emt 0:00:17]} Ne4 {[%emt 0:00:24]} 7. Qd3 {[%emt 0:03:13]} cxd4 {[%emt 0:03:45]} 8. Nxd4 {[%emt 0:00:35]} Nxc3 {[%emt 0:01:03]} 9. bxc3 {[%emt 0:00:28]} Ne5 {[%emt 0:00:42] E20: Nimzo-Indian: 4 g3 and 4 f3.} 10. Qc2 {[%emt 0:06:56]} Be7 {[%emt 0:02:30]} 11. Qb3 {[%emt 0:12:25]} O-O {[%emt 0:01:29] The position is equal.} 12. Bf4 {[%emt 0:05:52]} Qc7 {[%emt 0:01:17]} 13. O-O {[%emt 0:08:39]} d6 {[%emt 0:09:40]} 14. Nb5 $1 {[%emt 0:15:20]} Qb8 {[%emt 0:00:23] [#]} (14... Qc5 $11) 15. a4 $146 {[%emt 0:04:12]} (15. Rfd1 $14 {was preferrable.}) ({Predecessor:} 15. Qb4 a5 16. Qb3 Bd7 17. Rfd1 Bc6 18. Bxc6 bxc6 19. Nd4 Qc7 20. Qa4 Rfc8 21. Bxe5 dxe5 {½-½ (37) Campos Moreno,J (2450)-Beltran Rueda,S (2310) Barcelona 1993}) 15... a6 $11 {[%emt 0:27:13]} 16. Na3 {[%emt 0:01:42][%cal Oc4c5]} Nd7 {[%emt 0:02:54]} 17. a5 {[%emt 0:03:30]} Qc7 {[%emt 0:08:25]} 18. Rfd1 {[%emt 0:07:01]} Rb8 {[%emt 0:03:44]} 19. Qb4 {[%emt 0:03:45][%cal Rf4d6]} Nc5 {[%emt 0:06:09]} 20. Rab1 {[%emt 0:01:03]} Rd8 {[%emt 0:00:24]} 21. Be3 {[%emt 0:09:02]} Bd7 {[%emt 0:05:22]} 22. Bxc5 {[%emt 0:01:50]} (22. Nc2 $11) 22... dxc5 $15 {[%emt 0:00:26]} 23. Qb6 {[%emt 0:00:14]} Qe5 {[%emt 0:06:20]} (23... Qxb6 $15 24. Rxb6 Bc8) 24. Qa7 {[%emt 0:01:42]} (24. Bxb7 $5 {[%cal Rb6a6]} Ba4 25. Rxd8+ Rxd8 26. Bxa6 Qxc3 27. Qc7 $11) 24... Be8 {[%emt 0:06:36]} 25. Rxd8 {[%emt 0:03:14]} Bxd8 {[%emt 0:00:57]} 26. Rxb7 {[%emt 0:00:31]} Rxb7 {[%emt 0:01:10]} 27. Qxb7 {[%emt 0:00:05][%cal Oa3b5] [#] Hoping for Nb5!} Qc7 {[%emt 0:02:43]} (27... Bxa5 $2 28. Bc6 $18) (27... Qxc3 $11 28. Nb5 Qe1+ 29. Bf1 Qxa5) 28. Qxa6 $14 {[%emt 0:00:16]} Qxa5 {[%emt 0:00:22]} 29. Qxa5 {[%emt 0:01:09]} Bxa5 {[%emt 0:00:02] KBB-KBN} 30. Nb5 {[%emt 0:01:01]} Kf8 {[%emt 0:00:34]} 31. Kf1 {[%emt 0:01:27]} Ke7 {[%emt 0:00:18]} 32. Ke1 {[%emt 0:00:12]} Bxb5 33. e3 $2 {[%mdl 8192] [#]} (33. cxb5 $11 Bxc3+ 34. Kd1) 33... Be8 34. Kf1 {[%mdl 32768] Weighted Error Value: White=0.29 (precise) /Black=0.23 (precise) . An unexpected result.} 1/2-1/2